Cogmind - Beta 13 *** ADVENTURER MODE // 2024.05.16 @ 21:31:02 Player: Velkrum Result: Destroyed by G-34 Mercenary with Small Laser Performance ------------- Evolutions (1) 500 Regions Visited (3) 600 Robots Destroyed (19) 95 Value Destroyed (333) 333 Prototype IDs (0) 0 Alien Tech Used (0) 0 Bonus (0) 0 TOTAL SCORE: 1528 Bonus ------- None Cogmind --------- Core Integrity 0/400 Matter 164/300 Energy 100/100 System Corruption 0% Temperature Cool (6) Movement Core (100) Ox1 Location -9/Materials Parts ------- > --- POWER (1) -------- (None) > --- PROPULSION (2) --- (None) > --- UTILITY (4) ------ Small Storage Unit > --- WEAPON (2) ------- (None) > --- INVENTORY (8) ---- Mining Laser Peak State ------------ > --- POWER ------------ (None) > --- PROPULSION ------- Aluminum Leg Aluminum Leg > --- UTILITY ---------- Small Storage Unit Small Matter Pod Weight Redist. System Weight Redist. System > --- WEAPON ----------- Assault Rifle Light Assault Rifle > --- INVENTORY -------- Mining Laser [Rating: 10] Favorites ----------- Power Light Ion Engine Engine Light Ion Engine Propulsion Aluminum Leg Leg Aluminum Leg Utility Small Storage Unit Device Weight Redist. System Storage Small Storage Unit Weapon Assault Rifle Energy Gun EM Pulse Gun Ballistic Gun Assault Rifle Build | -11 -10 -10 -9 ------- Run | Yrd Mat Min Mat Slots Evolved 2 | . . . 2 Power . | . . . . Propulsion . | . . . . Utility 2 | . . . 2 Weapon . | . . . . Parts Attached 13 | 7 1 2 3 Power 3 | 2 . 1 . Engine 3 | 2 . 1 . Core . | . . . . Reactor . | . . . . Propulsion 3 | 2 . . 1 Treads . | . . . . Leg 3 | 2 . . 1 Wheel . | . . . . Hover . | . . . . Flight . | . . . . Utility 4 | 1 1 . 2 Device 2 | . . . 2 Storage 2 | 1 1 . . Processor . | . . . . Hackware . | . . . . Protection . | . . . . Artifact . | . . . . Weapon 3 | 2 . 1 . Energy Gun 1 | 1 . . . Energy Cannon . | . . . . Ballistic Gun 2 | 1 . 1 . Ballistic Cannon . | . . . . Launcher . | . . . . Special Weapon . | . . . . Impact Weapon . | . . . . Slashing Weapon . | . . . . Piercing Weapon . | . . . . Special Melee Weapon . | . . . . Unidentified Prototypes . | . . . . Parts Lost 9 | . . . 9 Power 1 | . . . 1 Propulsion 3 | . . . 3 Utility 3 | . . . 3 Weapon 2 | . . . 2 Highest Loss Streak 4 | . . . 4 To Critical Strikes 1 | . . . 1 Average Slot Usage (%) 80 | . 97 100 67 Engine 7 | . 14 14 2 Leg 21 | . 28 28 16 Device 6 | . . . 11 Storage 23 | . 25 28 21 Energy Gun 4 | . 14 5 . Ballistic Gun 16 | . 14 22 15 Naked Turns . | . . . . Heaviest Build 13 | 12 13 13 12 Greatest Support 26 | 20 20 20 26 Greatest Overweight (x) 2 | . . . 2 Average Overweight (x) . | . . . . Largest Inventory Capacity 8 | 8 8 8 8 Average Capacity 7 | 6 8 8 8 Most Carried 3 | 2 1 2 3 Average Carried . | . . 1 1 Final Capacity 8 | 8 8 8 8 Final Carried 1 | . 1 1 1 Class Distribution -------------------- 100% | Mutant Dominant Class ---------------- Mutant | -10/Materials Mutant | -10/Mines Mutant | -9/Materials Resources | -11 -10 -10 -9 ----------- Run | Yrd Mat Min Mat Matter Collected 299 | 147 21 16 115 Remotely . | . . . . Salvage Created 494 | . 72 53 369 Parts 39 | . 7 8 24 Haulers Intercepted . | . . . . Recyclers Shooed . | . . . . Parts Field Recycled . | . . . . Retrieved Matter . | . . . . Parts Self-Destructed . | . . . . Prevented . | . . . . Kills | -11 -10 -10 -9 ------- Run | Yrd Mat Min Mat Combat Hostiles Destroyed 17 | . 3 3 11 Guns 17 | . 3 3 11 Classes Destroyed 4 | . 2 . 2 Watcher 2 | . 1 . 1 Swarmer 13 | . 3 3 7 Grunt 2 | . . . 2 Sentry 2 | . . . 2 Best Kill Streak 11 | . 4 3 11 Combat Bots Only 10 | . 3 3 10 Max Kills in Single Turn 2 | . 1 2 2 Gunslinging 1 | . . 1 1 Exploded . | . . . . Melee . | . . . . Uniques/NPCs Destroyed . | . . . . Combat | -11 -10 -10 -9 -------- Run | Yrd Mat Min Mat Hostile Shots Fired 221 | . 29 5 187 Missed 64 | . 13 . 51 Damage Taken 1104 | . 95 27 982 Core 430 | . 4 23 403 Absorbed by Shields . | . . . . Ignored by Resistances 355 | . 32 10 313 Core Remaining (%) 94 | 100 . 89 . Volleys Fired 44 | . 11 3 30 Largest 2 | . 2 2 2 Hottest 60 | . 60 60 40 Shots Fired 84 | . 22 6 56 Gun 84 | . 22 6 56 Cannon . | . . . . Launcher . | . . . . Special . | . . . . Kinetic 70 | . 11 3 56 Thermal . | . . . . Explosive . | . . . . Electromagnetic 14 | . 11 3 . Robot Hit Streak 17 | . 5 11 17 Robot Miss Streak 4 | . 4 . 2 Penetration Max . | . . . . Secondary Targets 5 | . 2 1 2 Max Gunslinging Chain 1 | . 1 1 1 Shots Hit Robots 64 | . 15 6 43 Core Hits 29 | . 4 3 22 Critical Kills 2 | . . . 2 Critical Parts Destroyed . | . . . . Critical Strikes 2 | . . . 2 Destroy 2 | . . . 2 Melee Attacks . | . . . . Impact . | . . . . Slashing . | . . . . Piercing . | . . . . Sneak Attacks . | . . . . Combat Hostiles . | . . . . Follow-up Attacks . | . . . . Damage Inflicted 728 | . 217 70 441 Guns 728 | . 217 70 441 Cannons . | . . . . Explosions . | . . . . Melee . | . . . . Ramming . | . . . . Kinetic 583 | . 105 37 441 Thermal . | . . . . Explosive . | . . . . Electromagnetic 145 | . 112 33 . Impact . | . . . . Slashing . | . . . . Piercing . | . . . . Highest Corruption . | . . . . Average Corruption . | . . . . Corruption Purged . | . . . . Corruption Blocked . | . . . . Overload Shots . | . . . . Overflow Damage . | . . . . Projectiles . | . . . . Explosions . | . . . . Melee . | . . . . Knockbacks . | . . . . Impact . | . . . . Kinetic . | . . . . Secondary . | . . . . Self-Inflicted Damage . | . . . . Shots . | . . . . Rammed . | . . . . Targets Rammed . | . . . . Kicked . | . . . . Crushed . | . . . . Highest Temperature 1 | . . . 1 Average Temperature 1 | . . . 1 Received Heat Transfer 249 | . . . 249 Siege Activations . | . . . . Robots Corrupted . | . . . . Combat Hostiles . | . . . . Parts Fried 1 | . 1 . . Impact Corruptions . | . . . . Robots Melted . | . . . . Combat Hostiles . | . . . . Parts Melted . | . . . . Heat Transferred . | . . . . Parts Sabotaged . | . . . . Parts Stolen . | . . . . Parts Stripped . | . . . . Power Chain Reactions . | . . . . Alert | -11 -10 -10 -9 ------- Run | Yrd Mat Min Mat Peak Influence 440 | . 92 100 440 Initial 33 | . . 30 33 Average 165 | . 27 96 270 Maximum Alert Level 2 | . . . 2 Low Security (%) 63 | 100 100 100 32 Level 1 25 | . . . 46 Level 2 11 | . . . 20 Level 3 . | . . . . Level 4 . | . . . . Level 5 . | . . . . High Security . | . . . . Max Security . | . . . . Squads Dispatched 1 | . . . 1 Investigation . | . . . . Extermination . | . . . . Reinforcement 1 | . . . 1 Assault . | . . . . Garrison . | . . . . Intercept . | . . . . Searches Triggered . | . . . . Construction Impeded . | . . . . Haulers Reinforced . | . . . . Active Scanning Responses . | . . . . Cargo Convoy Interrupts . | . . . . Stealth | -11 -10 -10 -9 --------- Run | Yrd Mat Min Mat Distress Signals 2 | . 1 . 1 Communications Jammed . | . . . . Distress Signals . | . . . . Times Spotted 40 | . 6 3 31 Peak Tracking Total 11 | . 6 3 11 Tactical Retreats 5 | . . . 5 Traps | -11 -10 -10 -9 ------- Run | Yrd Mat Min Mat Traps Triggered . | . . . . Indirectly . | . . . . Trap Hack Attempts . | . . . . Triggered . | . . . . Disarmed . | . . . . Reprogrammed . | . . . . Reused . | . . . . Traps Extracted . | . . . . Installed . | . . . . Triggered . | . . . . Machines | -11 -10 -10 -9 ---------- Run | Yrd Mat Min Mat Machines Disabled . | . . . . Max in Single Turn . | . . . . Machines Repaired . | . . . . Machines Dismantled . | . . . . Machines Sabotaged . | . . . . Overloaded Fab Kills . | . . . . Hacking | -11 -10 -10 -9 --------- Run | Yrd Mat Min Mat Machines Accessed . | . . . . Terminals . | . . . . Fabricators . | . . . . Repair Stations . | . . . . Recycling Units . | . . . . Scanalyzers . | . . . . Garrison Access . | . . . . Total Hacks . | . . . . Successful . | . . . . Failed . | . . . . Catastrophic . | . . . . Database Lockouts . | . . . . Manual . | . . . . Terminals . | . . . . Fabricators . | . . . . Repair Stations . | . . . . Recycling Units . | . . . . Scanalyzers . | . . . . Garrison Access . | . . . . Terminal Hacks . | . . . . Fabricator Hacks . | . . . . Repair Station Hacks . | . . . . Recycling Unit Hacks . | . . . . Scanalyzer . | . . . . Garrison Access Hacks . | . . . . Unauthorized Hacks . | . . . . Terminals . | . . . . Fabricators . | . . . . Repair Stations . | . . . . Recycling Units . | . . . . Scanalyzers . | . . . . Garrison Access . | . . . . Data Cores Recovered . | . . . . Used . | . . . . Hacking Detections . | . . . . Full Trace Events . | . . . . Feedback Events . | . . . . Feedback Blocked . | . . . . Robot Schematics Acquired . | . . . . Robots Built . | . . . . Authchips . | . . . . Time . | . . . . Total Robot Build Rating . | . . . . Part Schematics Acquired . | . . . . Parts Built . | . . . . Authchips . | . . . . Time . | . . . . Total Part Build Rating . | . . . . Parts Repaired . | . . . . Time . | . . . . Parts Recycled . | . . . . Recycled Matter . | . . . . Retrieved Matter . | . . . . Retrieved Components . | . . . . Parts Scanalyzed . | . . . . Part Schematics Acquired . | . . . . Parts Damaged . | . . . . Bothacking | -11 -10 -10 -9 ------------ Run | Yrd Mat Min Mat Used RIF Installer . | . . . . Robots Hacked . | . . . . Non-combat . | . . . . Combat . | . . . . Robot Hacks Applied . | . . . . Relay Couplers Released . | . . . . Fabnet Peak Effective % . | . . . . Robots Rewired . | . . . . Allies Hacked . | . . . . Hacks Repelled . | . . . . Allies | -11 -10 -10 -9 -------- Run | Yrd Mat Min Mat Total Allies . | . . . . Largest Group . | . . . . Highest-Rated Group . | . . . . Highest-Rated Ally . | . . . . Total Orders . | . . . . Ally Attacks . | . . . . Total Damage . | . . . . Kills . | . . . . Allies Corrupted . | . . . . Allies Melted . | . . . . Intel | -11 -10 -10 -9 ------- Run | Yrd Mat Min Mat Robot Analysis Total . | . . . . Derelict Logs Recovered . | . . . . Drone Launches . | . . . . Drone Recoveries . | . . . . Exploration | -11 -10 -10 -9 ------------- Run | Yrd Mat Min Mat Turns Passed 615 | 51 153 79 332 Spaces Moved 329 | 35 98 54 142 Core 14 | 8 . . 6 Treads . | . . . . Legs 315 | 27 98 54 136 Wheels . | . . . . Hover . | . . . . Flight . | . . . . Fastest Speed 50 | 50 120 120 120 Average Speed 118 | 104 120 120 121 Slowest Speed 150 | 120 120 120 150 Overloaded Moves . | . . . . Propulsion Burnouts . | . . . . Robots Hopped . | . . . . Cave-ins Triggered . | . . . . Exploration Rate (%) 17 | 3 23 20 22 Regions Visited 3 Branch Regions 1 Pre-discovered Areas . | . . . . Known Exits Taken . | . . . . Unknown Exits Taken 3 | 1 1 1 . Scrap Searched . | . . . . Spaces Dug . | . . . . Terrain Destroyed . | . . . . Melee . | . . . . Projectile . | . . . . AOE . | . . . . Terrain Rammed . | . . . . Walls Destroyed . | . . . . Machines Disabled . | . . . . Actions | -11 -10 -10 -9 --------- Run | Yrd Mat Min Mat Total 473 | 49 111 62 251 Wait 73 | . . . 73 Move 326 | 34 97 53 142 Hop . | . . . . Pick Up 14 | 7 2 2 3 Fast Attach . | . . . . Attach 10 | 6 1 . 3 Detach . | . . . . Swap 3 | 1 . 2 . Drop 3 | 1 . 2 . Fire 44 | . 11 3 30 Melee . | . . . . Ram . | . . . . Kick . | . . . . Crush . | . . . . Escape Stasis . | . . . . Rewire . | . . . . Trap . | . . . . Miscellaneous . | . . . . Route ------- -11/Scrapyard -10/Materials -10/Mines -9/Materials History --------- Turn | Location | Event 3 | -11/Scrapyard | Discovered new exit (range 15) 52 | -11/Scrapyard | Entered Materials 137 | -10/Materials | Discovered new exit (range 10) 205 | -10/Materials | Entered Mines 271 | -10/Mines | Discovered new exit (range 13) 284 | -10/Mines | Entered Materials 284 | -9/Materials | Evolved 2 slots: Utility x2 314 | -9/Materials | Build established: Mutant 445 | -9/Materials | Destroyed 10 combat bots 568 | -9/Materials | Core integrity fell below 50% 601 | -9/Materials | Core integrity fell below 20% 616 | -9/Materials | Destroyed by G-34 Mercenary with Small Laser Last Messages --------------- 00446_ Acquired Aluminum Leg. 00448_ Acquired 68 matter. 00449_ K-01 Serf collects debris. 00467_ C-30 ARC bursts open, deploying its payload. 00467_ B-36 Bruiser unfolds itself. 00467_ G-34 Mercenary unfolds itself. 00487_ Assault Rifle destroyed. 00511_ O-16 Technician: "IFF HANDSHAKE FAILED. SECURING TERMINAL." 00511_ U-05 Engineer builds a Door. 00523_ S-10 Pest destroyed. 00523_ ALERT: Hostiles spotted, dispatching reinforcements to Terminal M010. 00536_ Aluminum Leg destroyed. 00554_ Critical hit (Destroy). 00554_ Lgt. Assault Rifle destroyed. 00589_ Aluminum Leg destroyed. 00602_ Sml. Matter Pod destroyed. 00605_ Weight Redist. System destroyed. Map ----- +----------------------------------------------------+ | ?????????????????????????????????????????????????? | | ?????????????????????????????????????????????????? | | ?????????????????????????????????????????????????? | | ?????????????????????????????????????????????????? | | ?????????????????????????????????????????????????? | | ?????????????????????????????????????????????????? | | ?????????????????????????????????????????????????? | | ?????????????????????????????????????????????????? | | ?????????????????????????????????????????????????? | | ?????????????????????????????????????????????????? | | ?????????????????????????????????????????????????? | | ?????????????????????????????????????????????????? | | ?????????????????????????????????????????????????? | | ?????????????????????????????????????????????????? | | ?????????????????????????????????????????????????? | | ?????????????????????????????????????????????????? | | ?????????????????????????????????????????????????? | | ?????????????????????????????????????????????????? | | ????????????????????????###??????????????????????? | | ????????????????????????# ??????????????????????? | | ????????????????????????#g#??????????????????????? | | ????????????????????????# #??????????????????????? | | ????????????????????????# #??????????????????????? | | ????????????????????????# #??????????????????????? | | ????????????????????????#s#??????????????????????? | | ????????????????????????#@#??????????????????????? | | ????????????????????????#s#??????????????????????? | | ????????????????????????#s#??????????????????????? | | ????????????????????????# #??????????????????????? | | ????????????????????????# #??????????? ??????????? | | ????????????????#########+#?????????? #???????? | | ????????????????# #?????????? #???????? | | ????????????????# #?????????? ????????? | | ????????????????# """ """ #?????????? ????????? | | ????????????????# """ """ #?????????? #????????? | | ????????????????# """ """ ##????????# #????????? | | ????????????????# * #????????# #????????? | | ????????????????# * =%[ ##????????# #????????? | | ????????????????# = #?????????# #????????? | | ????????????????#######/############# #????????? | | ???????????########## #????????? | | ???????????# ! #????????? | | ??????????????#### #????????? | | ?????????????????# """ #????????? | | ?????????????????# """ ###+###### ######+### | | ?????????????????# """ ## ???# | | ?????????????????# ## !#?# | | ???????????????+ ## """ #?# ! """ | | ???????????????####### ## """ #?## """ | | ?????????????????????# ## """ #??# """ | +----------------------------------------------------+ Best States ------------- Heat Dissipation 28 Energy Generation 10 Energy Capacity 250 Matter Stores 177 Matter Capacity 350 Sight Range 16 Terrain Scan Density 10 Additional Mass Support 6 Resistance: KI 20 Resistance: TH 20 Resistance: EX 20 Resistance: EM 20 Resistance: I 20 Resistance: S 20 Resistance: P 20 Evasion (%) 55 Offensive Hacking 10 Item Schematics ----------------- None Robot Schematics ------------------ None Fabricated ------------ Nothing Alien Tech Used ----------------- None Achievements -------------- None Challenges ------------ None Game ------ Seed PointTransportLog Manual? 0 Play Time 00:12:39 Cumulative 3.0 hours Start 2024.05.16 @ 17:33:32 End 2024.05.16 @ 21:31:02 Sessions 3 Manual Loads 0 Difficulty Adventurer Special Mode None Game No. 7 Rogue 0 Adventurer 7 Explorer 0 Win Type - Total 0 Types 0/0/0/0/0/0/0/0/0 Lore% 2 Gallery% 8 Achievement% 7 Wizard Run 0 Options --------- Layout 1 ASCII 0 Keyboard 0 Movement Mouse Keybinds 0 Fullscreen 1 Font 48/Smallcaps Map View 50x35 Zoom Use 0% Tactical HUD 1 Map Filters NONE Filters NONE Steam 1 RUN: f252a796-db8b-479c-88bd-aafdaf7f7990